fUST/lending_fUST_20260428
["ID","MTS","AMOUNT","RATE_DAILY","PERIOD"]
[421281304,1777329050278,-500.0,0.00019178,2]
[421281305,1777329050287,-271.69629978,0.00019178,2]
[421281306,1777329050296,-500.0,0.00019178,2]
[421281307,1777329050305,-500.0,0.00019178,2]
[421281308,1777329050314,-500.0,0.00019178,2]
[421281309,1777329050324,-500.0,0.00019178,2]
[421281310,1777329050333,-500.0,0.00019178,2]
[421281311,1777329050342,-500.0,0.00019178,2]
[421281312,1777329050352,-1863.88638208,0.000193,2]
[421281313,1777329050361,-231.0,0.0001931,2]
[421281314,1777329050370,-3408.09828975,0.00019352,2]
[421281315,1777329050379,-2312.83697232,0.00019378,2]
[421281316,1777329050388,-853.61006744,0.000194,2]
[421281317,1777329050397,-2257.15964504,0.000194,2]
[421281318,1777329050406,-2133.29852809,0.000194,2]
[421281319,1777329050415,-151.0,0.000194,2]
[421281320,1777329050424,-151.0,0.000194,2]
[421281321,1777329050433,-251.718405,0.000194,2]
[421281322,1777329050442,-151.0,0.000194,2]
[421281323,1777329050451,-151.0,0.000194,2]
[421281324,1777329050460,-151.0,0.000194,2]
[421281325,1777329050469,-199.948751,0.000194,2]
[421281326,1777329050478,-151.0,0.000194,2]
[421281327,1777329050487,-332.85882027,0.00019413,2]
[421281328,1777329050496,-207.0737,0.00019421,2]
[421281329,1777329050505,-617.33659928,0.00019451,2]
[421281330,1777329050514,-617.33659928,0.00019451,2]
[421281331,1777329050523,-617.33659928,0.00019451,2]
[421281332,1777329050532,-7058.88843785,0.00019452,2]
[421281333,1777329050542,-1711.53,0.00019452,2]
[421281334,1777329050550,-500.0,0.00019452,2]
[421281335,1777329050560,-500.0,0.00019452,2]
[421281336,1777329050569,-1861.82,0.00019452,2]
[421281337,1777329050578,-500.0,0.00019452,2]
[421281338,1777329050587,-17807.79,0.00019452,2]
[421281339,1777329050596,-779.02,0.00019452,2]
[421281340,1777329050606,-500.0,0.00019452,2]
[421281341,1777329050615,-1769.33,0.00019452,2]
[421281342,1777329050625,-1755.19,0.00019452,2]
[421281343,1777329050635,-14545.33,0.00019452,2]
[421281344,1777329050644,-4651.36,0.00019452,2]
[421281345,1777329050653,-500.0,0.00019452,2]
[421281346,1777329050662,-500.0,0.00019452,2]
[421281347,1777329050672,-2799.88,0.00019452,2]
[421281348,1777329050680,-500.0,0.00019452,2]
[421281349,1777329050690,-293.16072594,0.00019452,2]
[421281350,1777329050699,-9158.77,0.00019452,2]
[421281351,1777329050708,-1841.69,0.00019452,2]
[421281352,1777329050718,-563.55,0.00019452,2]
[421281353,1777329050728,-500.0,0.00019452,2]
[421281354,1777329050737,-871.16,0.00019452,2]
[421281355,1777329050746,-500.0,0.00019452,2]
[421281356,1777329050755,-500.0,0.00019452,2]
[421281357,1777329050764,-1096.64,0.00019452,2]
[421281358,1777329050773,-1061.98,0.00019452,2]
[421281359,1777329050783,-500.0,0.00019452,2]
[421281360,1777329050791,-500.0,0.00019452,2]
[421281361,1777329050800,-3068.05,0.00019452,2]
[421281362,1777329050810,-500.0,0.00019452,2]
[421281363,1777329050818,-1357.53,0.00019452,2]
[421281364,1777329050827,-2515.77,0.00019452,2]
[421281365,1777329050836,-759.67,0.00019452,2]
[421281366,1777329050846,-4110.36,0.00019452,2]
[421281367,1777329050855,-1124.76,0.00019452,2]
[421281368,1777329050864,-1130.27,0.00019452,2]
[421281369,1777329050873,-6198.64,0.00019452,2]
[421281370,1777329050882,-500.0,0.00019452,2]
[421281371,1777329050891,-611.51,0.00019452,2]
[421281372,1777329050900,-583.69,0.00019452,2]
[421281373,1777329050910,-500.0,0.00019452,2]
[421281374,1777329050919,-500.0,0.00019452,2]
[421281375,1777329050928,-2969.6,0.00019452,2]
[421281376,1777329050937,-512.24,0.00019452,2]
[421281377,1777329050946,-3167.4,0.00019452,2]
[421281378,1777329050955,-500.0,0.00019452,2]
[421281379,1777329050964,-902.49,0.00019452,2]
[421281380,1777329050973,-511.99,0.00019452,2]
[421281381,1777329050982,-500.0,0.00019452,2]
[421281382,1777329050991,-500.0,0.00019452,2]
[421281383,1777329051001,-500.0,0.00019452,2]
[421281384,1777329051010,-604.61,0.00019452,2]
[421281385,1777329051019,-500.0,0.00019452,2]
[421281386,1777329051029,-157.60052996,0.00019452,2]
[421281387,1777329051038,-1575.8,0.00019452,2]
[421281388,1777329051048,-500.0,0.00019452,2]
[421281389,1777329051058,-500.0,0.00019452,2]
[421281390,1777329051067,-7914.43,0.00019452,2]
[421281391,1777329051077,-500.0,0.00019452,2]
[421281392,1777329051086,-5162.05,0.00019452,2]
[421281393,1777329051096,-500.0,0.00019452,2]
[421281394,1777329051104,-3500.07,0.00019452,2]
[421281395,1777329051114,-500.0,0.00019452,2]
[421281396,1777329051123,-521.09897641,0.00019452,2]
[421281397,1777329051132,-500.0,0.00019452,2]
[421281398,1777329051141,-4701.42,0.00019452,2]
[421281399,1777329051150,-558.39,0.00019452,2]
[421281400,1777329051159,-5256.95,0.00019452,2]
[421281401,1777329051168,-4148.41,0.00019452,2]
[421281402,1777329051177,-1474.01,0.00019452,2]
[421281403,1777329051186,-1492.38,0.00019452,2]
[421281404,1777329051195,-500.0,0.00019452,2]
[421281405,1777329051204,-500.0,0.00019452,2]
[421281406,1777329051214,-838.03,0.00019452,2]
[421281407,1777329051223,-643.05,0.00019452,2]
[421281408,1777329051234,-500.0,0.00019452,2]
[421281409,1777329051243,-158.51017006,0.00019452,2]
[421281410,1777329051253,-717.61,0.00019452,2]
[421281411,1777329051262,-551.66,0.00019452,2]
[421281412,1777329051271,-500.0,0.00019452,2]
[421281413,1777329051280,-500.0,0.00019452,2]
[421281414,1777329051289,-1779.94,0.00019452,2]
[421281415,1777329051298,-2395.33,0.00019452,2]
[421281416,1777329051307,-1899.77,0.00019452,2]
[421281417,1777329051317,-1653.11,0.00019452,2]
[421281418,1777329051327,-500.0,0.00019452,2]
[421281419,1777329051336,-500.0,0.00019452,2]
[421281420,1777329051345,-4645.41,0.00019452,2]
[421281421,1777329051357,-500.0,0.00019452,2]
[421281422,1777329051366,-500.0,0.00019452,2]
[421281423,1777329051376,-1207.47,0.00019452,2]
[421281424,1777329051385,-500.0,0.00019452,2]
[421281425,1777329051394,-5333.58,0.00019452,2]
[421281426,1777329051403,-768.38,0.00019452,2]
[421281427,1777329051412,-500.0,0.00019452,2]
[421281428,1777329051422,-500.0,0.00019452,2]
[421281429,1777329051431,-890.44,0.00019452,2]
[421281430,1777329051440,-500.0,0.00019452,2]
[421281431,1777329051450,-500.0,0.00019452,2]
[421281432,1777329051458,-3771.26,0.00019452,2]
[421281433,1777329051467,-629.79615649,0.00019452,2]
[421281434,1777329051476,-1024.48,0.00019452,2]
[421281435,1777329051486,-673.63,0.00019452,2]
[421281436,1777329051495,-500.0,0.00019452,2]
[421281437,1777329051504,-556.09,0.00019452,2]
[421281438,1777329051513,-500.0,0.00019452,2]
[421281439,1777329051522,-833.54,0.00019452,2]
[421281440,1777329051531,-500.0,0.00019452,2]
[421281441,1777329051540,-500.0,0.00019452,2]
[421281442,1777329051549,-500.0,0.00019452,2]
[421281443,1777329051558,-500.0,0.00019452,2]
[421281444,1777329051568,-500.0,0.00019452,2]
[421281445,1777329051577,-500.0,0.00019452,2]
[421281446,1777329051586,-161.0937,0.00019452,2]
[421281447,1777329051595,-500.0,0.00019452,2]
[421281448,1777329051604,-500.0,0.00019452,2]
[421281449,1777329051614,-529.94657711,0.00019452,2]
[421281450,1777329051623,-500.0,0.00019452,2]
[421281451,1777329051632,-581.66,0.00019452,2]
[421281452,1777329051641,-500.0,0.00019452,2]
[421281453,1777329051651,-500.0,0.00019452,2]
[421281454,1777329051660,-439.61524642,0.00019452,2]
[421281455,1777329051669,-500.0,0.00019452,2]
[421281456,1777329051679,-553.26,0.00019452,2]
[421281457,1777329051688,-200.38124271,0.00019452,2]
[421281459,1777329934755,194.0,0.00025158,120]
[421281460,1777330029112,-408.70985459,0.00012542,10]
[421281463,1777330063732,7800.18810187,0.00024,120]
[421281465,1777330151128,-436.48571509,0.00012542,10]
[421281466,1777330151148,-2032.4363047,0.00012874,2]
[421281467,1777330165128,-713.30929174,0.00012874,2]
[421281468,1777330165149,-150.0,0.00012974,2]
[421281469,1777330165170,-604.0,0.00012974,2]
[421281470,1777330165190,-160.0,0.00013675,2]
[421281471,1777330165209,-427.33420826,0.00013699,2]
[421281516,1777330238031,-572.66579174,0.00013699,2]
[421281518,1777330238042,-150.0,0.00014337,2]
[421281520,1777330238052,-177.0,0.00016337,2]
[421281522,1777330238064,-254.22,0.00016497,2]
[421281524,1777330238074,-998.7,0.000169,2]
[421281526,1777330238084,-821.0,0.00017731,2]
[421281528,1777330238094,-998.7,0.000179,2]
[421281530,1777330238104,-300.0,0.00017989,2]
[421281532,1777330238114,-300.0,0.00017989,2]
[421281534,1777330238126,-333.0,0.00017989,2]
[421281536,1777330238136,-13797.10766223,0.0001799,2]
[421281538,1777330238146,-256649.21587751,0.0001799,2]
[421281540,1777330238158,-478.85715799,0.0001799,2]
[421281543,1777330238178,-4390.78716792,0.0001799,2]
[421281546,1777330238193,-950.54447648,0.0001799,2]
[421281624,1777330240551,-2284.60625744,0.0001799,2]
[421281647,1777330243122,-78198.86173871,0.0001799,2]
[421281648,1777330243229,-2244.0,0.0001799,2]
[421281650,1777330243471,-431.83675393,0.0001799,2]
[421281655,1777330246542,-30589.83485951,0.0001799,2]
[421281656,1777330246551,-2289.0,0.00018,5]
[421281657,1777330246560,-18135.16716614,0.00018032,2]
[421281658,1777330246570,-1576.55249926,0.00018086,2]
[421281659,1777330246579,-500.0,0.00018089,2]
[421281660,1777330246588,-251.51,0.00018089,2]
[421281661,1777330246597,-645.0,0.0001826,2]
[421281662,1777330246606,-1409.0,0.0001826,2]
[421281663,1777330246615,-2211.0,0.0001826,2]
[421281664,1777330246624,-166.213,0.0001826,2]
[421281665,1777330246634,-163.86950072,0.00018298,2]
[421281666,1777330246643,-204.0,0.00018337,2]
[421281667,1777330246652,-2150.738,0.00018366,2]
[421281668,1777330246662,-1576.55249925,0.00018403,2]
[421281669,1777330246672,-159.407,0.0001854,2]
[421281670,1777330246681,-600.0,0.00018555,2]
[421281671,1777330246691,-1576.55249925,0.00018719,2]
[421281672,1777330246700,-998.7,0.000189,2]
[421281673,1777330246709,-1178.72420008,0.00018914,2]
[421281674,1777330246718,-321.0,0.00019,2]
[421281675,1777330246727,-515.0,0.00019,2]
[421281676,1777330246736,-948.0,0.00019,2]
[421281677,1777330246745,-564.0,0.00019,2]
[421281678,1777330246754,-199.0,0.00019,2]
[421281679,1777330246764,-167.0,0.00019,2]
[421281680,1777330246773,-3506.0,0.00019,2]
[421281681,1777330246782,-1576.55249925,0.00019036,2]
[421281682,1777330246791,-631.59849417,0.00019063,2]
[421281683,1777330246800,-500.0,0.00019178,2]
[421281684,1777330246810,-500.0,0.00019178,2]
[421281685,1777330246819,-500.0,0.00019178,2]
[421281686,1777330246828,-500.0,0.00019178,2]
[421281687,1777330246837,-1247.87,0.00019178,2]
[421281688,1777330246846,-798.18,0.00019178,2]
[421281689,1777330246855,-500.0,0.00019178,2]
[421281690,1777330246865,-543.30013721,0.00019178,2]
[421281691,1777330246874,-511.23,0.00019178,2]
[421281692,1777330246884,-500.0,0.00019178,2]
[421281693,1777330246893,-500.0,0.00019178,2]
[421281694,1777330246902,-500.0,0.00019178,2]
[421281695,1777330246912,-500.0,0.00019178,2]
[421281696,1777330246921,-500.0,0.00019178,2]
[421281697,1777330246930,-5537.23,0.00019178,2]
[421281698,1777330246939,-500.0,0.00019178,2]
[421281699,1777330246948,-500.0,0.00019178,2]
[421281700,1777330246958,-535.89328953,0.00019178,2]
[421281701,1777330246967,-500.0,0.00019178,2]
[421281702,1777330246977,-646.87,0.00019178,2]
[421281703,1777330246986,-500.0,0.00019178,2]
[421281704,1777330246996,-500.0,0.00019178,2]
[421281705,1777330247005,-500.0,0.00019178,2]
[421281706,1777330247015,-500.0,0.00019178,2]
[421281707,1777330247024,-506.77,0.00019178,2]
[421281708,1777330247034,-500.0,0.00019178,2]
[421281709,1777330247043,-500.0,0.00019178,2]
[421281710,1777330247052,-500.0,0.00019178,2]
[421281711,1777330247061,-500.0,0.00019178,2]
[421281712,1777330247071,-500.0,0.00019178,2]
[421281713,1777330247080,-500.0,0.00019178,2]
[421281714,1777330247091,-500.0,0.00019178,2]
[421281715,1777330247100,-500.0,0.00019178,2]
[421281716,1777330247109,-500.0,0.00019178,2]
[421281717,1777330247119,-500.0,0.00019178,2]
[421281718,1777330247128,-500.0,0.00019178,2]
[421281719,1777330247137,-500.0,0.00019178,2]
[421281720,1777330247147,-500.0,0.00019178,2]
[421281721,1777330247156,-500.0,0.00019178,2]
[421281722,1777330247166,-708.48,0.00019178,2]
[421281723,1777330247176,-500.0,0.00019178,2]
[421281724,1777330247185,-500.0,0.00019178,2]
[421281725,1777330247194,-500.0,0.00019178,2]
[421281726,1777330247203,-500.0,0.00019178,2]
[421281727,1777330247212,-500.0,0.00019178,2]
[421281728,1777330247222,-500.0,0.00019178,2]
[421281729,1777330247231,-500.0,0.00019178,2]
[421281730,1777330247240,-1556.36,0.00019178,2]
[421281731,1777330247249,-500.0,0.00019178,2]
[421281732,1777330247258,-620.42,0.00019178,2]
[421281733,1777330247268,-1032.22,0.00019178,2]
[421281734,1777330247278,-500.0,0.00019178,2]
[421281735,1777330247287,-500.0,0.00019178,2]
[421281736,1777330247296,-500.0,0.00019178,2]
[421281737,1777330247305,-500.0,0.00019178,2]
[421281738,1777330247315,-500.23,0.00019178,2]
[421281739,1777330247325,-775.11,0.00019178,2]
[421281740,1777330247334,-500.0,0.00019178,2]
[421281741,1777330247343,-960.28,0.00019178,2]
[421281742,1777330247353,-500.0,0.00019178,2]
[421281743,1777330247362,-500.0,0.00019178,2]
[421281744,1777330247372,-500.0,0.00019178,2]
[421281745,1777330247381,-500.0,0.00019178,2]
[421281746,1777330247390,-737.94,0.00019178,2]
[421281747,1777330247400,-500.0,0.00019178,2]
[421281748,1777330247408,-868.09,0.00019178,2]
[421281749,1777330247418,-500.0,0.00019178,2]
[421281750,1777330247427,-1463.95,0.00019178,2]
[421281751,1777330247436,-500.0,0.00019178,2]
[421281752,1777330247446,-1703.43,0.00019178,2]
[421281753,1777330247456,-500.0,0.00019178,2]
[421281754,1777330247466,-500.0,0.00019178,2]
[421281755,1777330247475,-500.0,0.00019178,2]
[421281756,1777330247485,-500.0,0.00019178,2]
[421281757,1777330247494,-500.0,0.00019178,2]
[421281758,1777330247503,-500.0,0.00019178,2]
[421281759,1777330247512,-500.0,0.00019178,2]
[421281760,1777330247522,-500.0,0.00019178,2]
[421281761,1777330247531,-500.0,0.00019178,2]
[421281762,1777330247540,-520.46,0.00019178,2]
[421281763,1777330247550,-500.0,0.00019178,2]
[421281764,1777330247559,-1327.26,0.00019178,2]
[421281765,1777330247568,-1728.53,0.00019178,2]
[421281766,1777330247577,-500.0,0.00019178,2]
[421281767,1777330247587,-500.0,0.00019178,2]
[421281768,1777330247596,-3993.66,0.00019178,2]
[421281769,1777330247606,-500.0,0.00019178,2]
[421281770,1777330247615,-500.0,0.00019178,2]
[421281771,1777330247624,-500.0,0.00019178,2]
[421281772,1777330247633,-500.0,0.00019178,2]
[421281773,1777330247642,-500.0,0.00019178,2]
[421281774,1777330247651,-500.0,0.00019178,2]
[421281775,1777330247660,-321.04844803,0.00019178,2]
[421281776,1777330247669,-500.0,0.00019178,2]
[421281777,1777330247678,-500.0,0.00019178,2]
[421281778,1777330247687,-1266.73,0.00019178,2]
[421281779,1777330247696,-500.0,0.00019178,2]
[421281780,1777330247706,-390.9462918,0.00019178,2]
[421281781,1777330247715,-500.0,0.00019178,2]
[421281782,1777330247724,-500.0,0.00019178,2]
[421281783,1777330247733,-500.0,0.00019178,2]
[421281784,1777330247742,-500.0,0.00019178,2]
[421281785,1777330247751,-500.0,0.00019178,2]
[421281786,1777330247760,-500.0,0.00019178,2]
[421281787,1777330247769,-500.0,0.00019178,2]
[421281788,1777330247778,-1920.1672,0.00019178,2]
[421281789,1777330247787,-682.02,0.00019178,2]
[421281790,1777330247796,-500.0,0.00019178,2]
[421281791,1777330247805,-500.0,0.00019178,2]
[421281792,1777330247815,-500.0,0.00019178,2]
[421281793,1777330247824,-500.0,0.00019178,2]
[421281794,1777330247833,-500.0,0.00019178,2]
[421281795,1777330247843,-644.28,0.00019178,2]
[421281796,1777330247852,-500.0,0.00019178,2]
[421281797,1777330247861,-500.0,0.00019178,2]
[421281798,1777330247870,-500.0,0.00019178,2]
[421281799,1777330247879,-500.0,0.00019178,2]
[421281800,1777330247888,-500.0,0.00019178,2]
[421281801,1777330247897,-500.0,0.00019178,2]
[421281802,1777330247906,-500.0,0.00019178,2]
[421281803,1777330247915,-629.18,0.00019178,2]
[421281804,1777330247925,-500.0,0.00019178,2]
[421281805,1777330247934,-1153.92,0.00019178,2]
[421281806,1777330247943,-500.0,0.00019178,2]
[421281807,1777330247953,-500.0,0.00019178,2]
[421281808,1777330247962,-500.0,0.00019178,2]
[421281809,1777330247971,-500.0,0.00019178,2]
[421281810,1777330247980,-591.94,0.00019178,2]
[421281811,1777330247990,-500.0,0.00019178,2]
[421281812,1777330247999,-499.9730524,0.00019178,2]
[421281813,1777330248008,-500.0,0.00019178,2]
[421281814,1777330248017,-500.0,0.00019178,2]
[421281815,1777330248027,-500.0,0.00019178,2]
[421281816,1777330248036,-500.0,0.00019178,2]
[421281817,1777330248045,-500.0,0.00019178,2]
[421281818,1777330248054,-500.0,0.00019178,2]
[421281819,1777330248064,-500.0,0.00019178,2]
[421281820,1777330248073,-500.0,0.00019178,2]
[421281821,1777330248082,-500.0,0.00019178,2]
[421281822,1777330248092,-500.0,0.00019178,2]
[421281823,1777330248101,-517.2,0.00019178,2]
[421281824,1777330248111,-500.0,0.00019178,2]
[421281825,1777330248120,-566.18,0.00019178,2]
[421281826,1777330248129,-500.0,0.00019178,2]
[421281827,1777330248137,-500.0,0.00019178,2]
[421281828,1777330248146,-527.01,0.00019178,2]
[421281829,1777330248156,-500.0,0.00019178,2]
[421281830,1777330248165,-500.0,0.00019178,2]
[421281831,1777330248174,-500.0,0.00019178,2]
[421281832,1777330248183,-500.0,0.00019178,2]
[421281833,1777330248193,-500.0,0.00019178,2]
[421281834,1777330248202,-500.0,0.00019178,2]
[421281835,1777330248211,-500.0,0.00019178,2]
[421281836,1777330248220,-502.55,0.00019178,2]
[421281837,1777330248229,-551.18,0.00019178,2]
[421281838,1777330248239,-500.0,0.00019178,2]
[421281839,1777330248248,-500.0,0.00019178,2]
[421281840,1777330248257,-567.49,0.00019178,2]
[421281841,1777330248266,-612.19304054,0.00019178,2]
[421281842,1777330248275,-500.0,0.00019178,2]
[421281843,1777330248284,-500.0,0.00019178,2]
[421281844,1777330248294,-500.0,0.00019178,2]
[421281845,1777330248303,-576.24,0.00019178,2]
[421281846,1777330248312,-500.0,0.00019178,2]
[421281847,1777330248321,-33.21504921,0.00019178,2]
[421281848,1777330248336,-300.0,0.00019178,2]
[421281850,1777331155157,-156.0,0.00013699,2]
[421281851,1777331155178,-150.0,0.00013699,2]
[421281852,1777331155198,-246.14013492,0.00013699,2]
[421281865,1777331198127,-171.28993867,0.00013699,2]
[421281868,1777331348085,-430.22,0.00013699,2]
[421281887,1777331431971,-561.85557731,0.00013699,2]
[421281889,1777331431982,-7.92442269,0.00013699,2]
[421281890,1777331431991,-281.0,0.00013699,2]
[421281891,1777331432000,-167.71404393,0.00014457,2]
[421281892,1777331432009,-177.0,0.00015699,2]
[421281893,1777331432018,-160.0,0.00017695,2]
[421281894,1777331432027,-204.0,0.00017699,2]
[421281895,1777331432036,-1199.0,0.00017883,2]
[421281896,1777331432045,-300.0,0.00017883,2]
[421281897,1777331432054,-195.0,0.00017883,2]
[421281898,1777331432063,-167.96905846,0.00017884,2]
[421281899,1777331432073,-500.0,0.00017884,2]
[421281900,1777331432082,-500.0,0.00017884,2]
[421281901,1777331432091,-500.0,0.00017884,2]
[421281902,1777331432100,-500.0,0.00017884,2]
[421281903,1777331432109,-371.61428477,0.00017884,2]
[421281919,1777331443189,-128.38571523,0.00017884,2]
[421281920,1777331443199,-500.0,0.00017884,2]
[421281921,1777331443208,-500.0,0.00017884,2]
[421281922,1777331443218,-500.0,0.00017884,2]
[421281923,1777331443227,-500.0,0.00017884,2]
[421281924,1777331443237,-500.0,0.00017884,2]
[421281925,1777331443250,-500.0,0.00017884,2]
[421281926,1777331443259,-500.0,0.00017884,2]
[421281927,1777331443269,-500.0,0.00017884,2]
[421281928,1777331443278,-500.0,0.00017884,2]
[421281929,1777331443288,-500.0,0.00017884,2]
[421281930,1777331443297,-500.0,0.00017884,2]
[421281931,1777331443306,-263.61333121,0.00017884,2]
[421281932,1777331443316,-500.0,0.00017884,2]
[421281933,1777331443325,-500.0,0.00017884,2]
[421281934,1777331443334,-500.0,0.00017884,2]
[421281935,1777331443344,-500.0,0.00017884,2]
[421281936,1777331443354,-467.07410836,0.00017884,2]
[421281937,1777331443365,-13374.55455538,0.00017885,2]
[421281938,1777331443425,-64.70619362,0.00017885,2]
[421281939,1777331443437,-6952.79378949,0.00017885,2]
[421281954,1777331446589,-500.0,0.00017889,2]
[421281956,1777331446599,-157.57,0.00017889,2]
[421281957,1777331446608,-315.31049985,0.00017942,2]
[421281958,1777331446618,-169.48121855,0.00018042,2]
[421281959,1777331446850,-534.09378145,0.00018042,2]
[421281960,1777331446860,-1217.71182021,0.0001826,2]
[421281961,1777331446928,-70.7462374,0.0001826,2]
[421281962,1777331446939,-120.54194239,0.0001826,2]
[421281963,1777331446948,-315.31049985,0.00018295,2]
[421281964,1777331446958,-445.202766,0.00018392,2]
[421281965,1777331446967,-174.75242141,0.00018392,2]
[421281966,1777331446976,-537.6845,0.00018392,2]
[421281967,1777331446985,-2150.738,0.00018392,2]
[421281968,1777331446995,-315.31049985,0.00018647,2]
[421281969,1777331447004,-180.661,0.000187,2]
[421281970,1777331447013,-7459.63491229,0.00018898,2]
[421281971,1777331447022,-461.67526834,0.0001894,2]
[421281972,1777331447031,-557.5788265,0.0001894,2]
[421281973,1777331447041,-2230.315306,0.0001894,2]
[421281974,1777331447054,-4047.89855447,0.00018996,2]
[421281975,1777331447063,-305.3097842,0.00018996,2]
[421281976,1777331447072,-235.02306068,0.00018996,2]
[421281977,1777331447081,-171.89324146,0.00018996,2]
[421281978,1777331447091,-4047.89855447,0.00018996,2]
[421281979,1777331447100,-4047.89855447,0.00018996,2]
[421281980,1777331447109,-4047.89855447,0.00018996,2]
[421281981,1777331447119,-4047.89855447,0.00018996,2]
[421281982,1777331447128,-4047.89855447,0.00018996,2]
[421281983,1777331447137,-4047.89855447,0.00018996,2]
[421281984,1777331447146,-4047.89855447,0.00018996,2]
[421281985,1777331447156,-4047.89855447,0.00018996,2]
[421281986,1777331447165,-3691.7939306,0.00018996,2]
[421281987,1777331447177,-356.10462387,0.00018996,2]
[421281988,1777331447186,-4047.89855447,0.00018996,2]
[421281989,1777331447195,-4047.89855447,0.00018996,2]
[421281990,1777331447205,-4047.89855447,0.00018996,2]
[421281991,1777331447215,-4047.89855447,0.00018996,2]
[421281992,1777331447224,-4047.89855447,0.00018996,2]
[421281993,1777331447233,-570.07381505,0.00018996,2]
[421281994,1777331447245,-3477.82473942,0.00018996,2]
[421281995,1777331447254,-4047.89855447,0.00018996,2]
[421281996,1777331447263,-928.20256511,0.00018996,2]
[421281997,1777331457283,7131.07232075,0.00015,120]
[421281998,1777331860824,2529103.6403392,0.00024657,120]
[421281999,1777332356356,5000.0,7.4e-05,10]
[421282000,1777332356376,2602.0,7.4e-05,10]
[421282001,1777332561602,-1200.0,0.00011999,2]
[421282002,1777332561624,-394.0,0.00011999,2]
[421282003,1777332561645,-300.0,0.00011999,2]
[421282004,1777332561666,-150.0,0.00011999,2]
[421282005,1777332561685,-15264.175685,0.00012,2]
[421282006,1777332574127,-4735.824315,0.00012,2]
[421282007,1777332574149,-420.0,0.00013172,2]
[421282031,1777332632533,-209.94026082,0.00013599,2]
[421282032,1777332632543,-160.0,0.00013696,2]
[421282033,1777332632553,-1000.0,0.00013699,2]
[421282034,1777332632562,-177.0,0.00013999,2]
[421282035,1777332632572,-204.0,0.00015999,2]
[421282036,1777332632582,-332.31385544,0.000176,2]
[421282037,1777332632591,-701.18595314,0.000176,2]
[421282038,1777332632601,-160.0,0.0001762,2]
[421282039,1777332632610,-323.4664281,0.0001766,2]
[421282040,1777332632619,-180.661,0.0001776,2]
[421282041,1777332632628,-231.0,0.00017999,2]
[421282042,1777332632638,-595.27157258,0.00018266,2]
[421282043,1777332632647,-2601.31162376,0.00018266,2]
[421282044,1777332632657,-300.0,0.00018363,2]
[421282045,1777332632666,-164.51614248,0.00018365,2]
[421282046,1777332632675,-5046.3037849,0.00018366,2]
[421282048,1777332632687,-1021.51710022,0.00018366,2]
[421282049,1777332632698,-1799.87446784,0.00018366,2]
[421282050,1777332632709,-7416.48114865,0.00018366,2]
[421282051,1777332632720,-3515.98003944,0.00018366,2]
[421282052,1777332632731,-2503.2357674,0.00018366,2]
[421282053,1777332632742,-4256.02442883,0.00018366,2]
[421282060,1777332638550,-1200.0,0.00018366,2]
[421282061,1777332638561,-775657.79844412,0.00018366,2]
[421282072,1777332640830,-764.47728457,0.00018366,2]
[421282105,1777332643319,-1045.05139683,0.00018366,2]
[421282106,1777332643484,-1297.21331,0.00018366,2]
[421282108,1777332647184,-8995.69343295,0.00018366,2]